bitfinex/quotes_BTCUSD_20241130
["timestamp","ask_amount","ask_price","bid_price","bid_amount"]
[1732972548134,0.00182154,96694.0,96693.0,0.96774421]
[1732972548605,0.00182154,96694.0,96693.0,0.42187509]
[1732972552024,0.00182154,96694.0,96693.0,0.42187508]
[1732972554417,0.00182154,96694.0,96693.0,3.52210908]
[1732972554619,0.00182154,96694.0,96693.0,2.09425508]
[1732972556032,0.00182154,96694.0,96693.0,2.14145507]
[1732972556283,6.421e-05,96694.0,96693.0,2.14145507]
[1732972556913,6.421e-05,96694.0,96693.0,2.14145506]
[1732972557354,6.421e-05,96694.0,96693.0,2.14231836]
[1732972558670,0.0009042,96699.0,96698.0,0.34200883]
[1732972558885,0.0009042,96699.0,96698.0,0.68225715]
[1732972559093,0.0009042,96699.0,96698.0,4.15972415]
[1732972559304,0.0009042,96699.0,96698.0,4.18360715]
[1732972559521,0.0009042,96699.0,96698.0,4.18360714]
[1732972559960,0.0019042,96699.0,96698.0,3.29030214]
[1732972560152,0.0019042,96699.0,96698.0,3.29930214]
[1732972560446,0.0009042,96699.0,96698.0,3.29030214]
[1732972560688,0.0009042,96699.0,96698.0,3.28130214]
[1732972560929,0.0019042,96699.0,96698.0,3.29930214]
[1732972561175,0.0019042,96699.0,96698.0,3.29930213]
[1732972561395,0.0019042,96699.0,96698.0,3.55780213]
[1732972561622,0.0019042,96699.0,96698.0,3.5786224]
[1732972561847,0.049,96722.0,96708.0,0.29539883]
[1732972562063,0.049,96722.0,96708.0,0.39864712]
[1732972564064,0.049,96722.0,96708.0,0.40564712]
[1732972564512,0.049,96722.0,96708.0,0.41464712]
[1732972564733,0.049,96711.0,96708.0,0.39164712]
[1732972564957,0.1245,96711.0,96708.0,0.39164712]
[1732972565175,0.1245,96711.0,96708.0,0.37265229]
[1732972566023,0.1245,96711.0,96708.0,0.36565229]
[1732972566425,0.1245,96711.0,96708.0,0.37465729]
[1732972566856,0.1245,96711.0,96708.0,0.37665729]
[1732972567077,0.1245,96711.0,96708.0,0.36765729]
[1732972567287,0.1245,96711.0,96708.0,0.37265729]
[1732972567502,0.1245,96711.0,96708.0,0.38165729]
[1732972568165,0.0017268,96723.0,96708.0,0.23165729]
[1732972568166,0.126227,96709.0,96708.0,0.23165729]
[1732972568386,0.12817551,96709.0,96708.0,0.23165729]
[1732972568876,0.12817551,96709.0,96708.0,0.23165728]
[1732972569506,0.12817551,96709.0,96708.0,0.38165728]
[1732972569727,0.12817551,96709.0,96708.0,0.36765728]
[1732972569941,0.12817551,96709.0,96708.0,0.37465728]
[1732972570485,0.12817551,96709.0,96708.0,0.36765728]
[1732972570701,0.12817551,96709.0,96708.0,0.37365728]
[1732972571377,0.12817551,96709.0,96708.0,0.36965728]
[1732972571837,0.12817551,96709.0,96708.0,0.37065728]
[1732972572056,0.12817551,96709.0,96708.0,0.36865728]
[1732972572531,0.12817551,96709.0,96708.0,0.36965728]
[1732972572956,0.12817551,96709.0,96708.0,0.36865728]
[1732972573389,0.12817551,96709.0,96708.0,0.36965728]
[1732972580592,0.00367551,96709.0,96708.0,0.36965728]
[1732972580847,0.00367551,96709.0,96708.0,0.37965728]
[1732972581075,0.001727,96709.0,96708.0,0.37965728]
[1732972581288,0.00367249,96709.0,96708.0,0.37965728]
[1732972582180,0.001727,96709.0,96708.0,0.37965728]
[1732972584284,0.001727,96709.0,96708.0,0.37965727]
[1732972592373,0.050527,96709.0,96708.0,0.37965727]
[1732972593073,0.05247692,96709.0,96708.0,0.37965727]
[1732972593298,0.050527,96709.0,96708.0,0.37965727]
[1732972593528,0.001727,96709.0,96708.0,0.37965727]
[1732972594958,0.050527,96709.0,96708.0,0.36965727]
[1732972595197,0.133627,96709.0,96708.0,0.36965727]
[1732972595429,0.13557692,96709.0,96708.0,0.36965727]
[1732972596841,0.13529836,96709.0,96708.0,0.36965727]
[1732972600120,0.13529836,96709.0,96708.0,0.36965726]
[1732972604638,0.13529836,96709.0,96708.0,0.36765726]
[1732972604865,0.13529836,96709.0,96708.0,0.36865726]
[1732972605059,0.13529836,96709.0,96708.0,0.36965726]
[1732972605556,0.13529836,96709.0,96708.0,0.36865726]
[1732972606226,0.13529836,96709.0,96708.0,0.36765726]
[1732972606451,0.13529836,96709.0,96708.0,0.36865726]
[1732972606899,0.13529836,96709.0,96708.0,0.36965726]
[1732972610501,0.00339836,96709.0,96708.0,0.36965726]
[1732972610731,0.00144844,96709.0,96708.0,0.36965726]
[1732972610976,0.0452,96715.0,96709.0,0.253402]
[1732972611209,0.0452,96715.0,96709.0,0.35665026]
[1732972611707,0.0755,96716.0,96709.0,0.35665026]
[1732972611936,0.0508974,96710.0,96709.0,0.35665026]
[1732972612640,0.0508974,96710.0,96709.0,0.35765026]
[1732972613260,0.1298974,96710.0,96709.0,0.35865026]
[1732972613497,0.1298974,96710.0,96709.0,0.35865025]
[1732972616287,0.1298974,96710.0,96709.0,0.35665025]
[1732972619126,0.0508974,96710.0,96709.0,0.35665025]
[1732972619531,0.0021974,96710.0,96709.0,0.35665025]
[1732972620871,0.0021974,96710.0,96709.0,0.35865025]
[1732972621325,0.0021974,96710.0,96709.0,0.35965025]
[1732972622684,0.0021974,96710.0,96709.0,0.35865025]
[1732972622991,0.0021974,96710.0,96709.0,0.35665025]
[1732972623105,0.0021974,96710.0,96709.0,0.35765025]
[1732972624017,0.0021974,96710.0,96709.0,0.38065025]
[1732972627618,0.0021974,96710.0,96709.0,0.38065024]
[1732972630974,0.0021974,96710.0,96709.0,0.38151334]
[1732972639005,0.0021974,96710.0,96709.0,0.38151333]
[1732972642579,0.0021974,96710.0,96709.0,0.38051333]
[1732972645267,0.0021974,96710.0,96709.0,0.38351333]
[1732972645751,0.0021974,96710.0,96709.0,0.38151333]
[1732972646024,0.0021974,96710.0,96709.0,0.38251333]
[1732972646249,0.0021974,96710.0,96709.0,0.38351333]
[1732972646994,0.0021974,96710.0,96709.0,0.38351332]
[1732972647464,0.00320257,96710.0,96709.0,0.38351332]
[1732972651377,0.0021974,96710.0,96709.0,0.38351332]
[1732972651597,0.00320257,96710.0,96709.0,0.38351332]
[1732972662447,0.04920257,96710.0,96709.0,0.38351332]
[1732972664417,0.04920257,96710.0,96709.0,0.38351331]
[1732972666016,0.0481974,96710.0,96709.0,0.38351331]
[1732972666241,0.04920257,96710.0,96709.0,0.38351331]
[1732972668902,0.00320257,96710.0,96709.0,0.38351331]
[1732972670922,0.0021974,96710.0,96709.0,0.38351331]
[1732972671159,0.00320257,96710.0,96709.0,0.38351331]
[1732972676547,0.00320257,96710.0,96709.0,0.38251331]
[1732972677200,0.00320257,96710.0,96709.0,0.38051331]
[1732972677415,0.00320257,96710.0,96709.0,0.38151331]
[1732972677850,0.00320257,96710.0,96709.0,0.38051331]
[1732972678070,0.00320257,96710.0,96709.0,0.38151331]
[1732972680585,0.00320257,96710.0,96709.0,0.27811131]
[1732972680813,0.13590257,96710.0,96709.0,0.23051331]
[1732972681026,0.13590257,96710.0,96709.0,0.20751331]
[1732972681246,0.13778421,96710.0,96709.0,0.2085133]
[1732972681465,0.13590257,96710.0,96709.0,0.2075133]
[1732972681689,0.13778421,96710.0,96709.0,0.2075133]
[1732972682144,0.13778421,96710.0,96709.0,0.3575133]
[1732972682826,0.13590257,96710.0,96709.0,0.3575133]
[1732972683509,0.13690257,96710.0,96709.0,0.3575133]
[1732972683737,0.13590257,96710.0,96709.0,0.3575133]
[1732972684209,0.13990257,96710.0,96709.0,0.3575133]
[1732972684722,0.13790257,96710.0,96709.0,0.3575133]
[1732972684941,0.13590257,96710.0,96709.0,0.3575133]
[1732972685159,0.13990257,96710.0,96709.0,0.3575133]
[1732972687030,0.13790257,96710.0,96709.0,0.3575133]
[1732972687484,0.13790257,96710.0,96709.0,0.2541113]
[1732972687485,0.13990257,96710.0,96709.0,0.2541113]
[1732972687922,0.14177944,96710.0,96709.0,0.2541113]
[1732972689482,0.24518044,96710.0,96709.0,0.00126609]
[1732972692072,0.24318044,96710.0,96709.0,0.00126609]
[1732972692313,0.25318044,96710.0,96709.0,0.00126609]
[1732972693253,0.25118044,96710.0,96709.0,0.00126609]
[1732972693499,0.25918044,96710.0,96709.0,0.00126609]
[1732972700055,0.25871004,96710.0,96709.0,0.00126609]
[1732972710944,0.15530904,96710.0,96709.0,0.00126609]
[1732972711157,0.25871004,96710.0,96709.0,0.00126609]
[1732972711822,0.15530904,96710.0,96709.0,0.00126609]
[1732972712732,0.25871004,96710.0,96709.0,0.00126609]
[1732972712953,0.15530904,96710.0,96709.0,0.00126609]
[1732972713181,0.25871004,96710.0,96709.0,0.00126609]
[1732972713840,0.15530904,96710.0,96709.0,0.00126609]
[1732972714295,0.01160387,96710.0,96709.0,0.10466809]
[1732972714540,0.02260904,96710.0,96709.0,0.10466809]
[1732972714728,0.02260904,96710.0,96709.0,0.00126609]
[1732972714729,0.02073217,96710.0,96709.0,0.00126609]
[1732972715023,0.02258606,96710.0,96709.0,0.00126609]
[1732972715780,0.12598706,96710.0,96709.0,0.00126609]
[1732972717190,0.25078706,96710.0,96709.0,0.00126609]
[1732972726398,0.26186507,96710.0,96709.0,0.00126609]
[1732972730701,0.14738606,96710.0,96709.0,0.00126609]
[1732972731161,0.14738606,96710.0,96709.0,0.10466809]
[1732972732046,0.14738606,96710.0,96709.0,0.00126609]
[1732972732279,0.02258606,96710.0,96709.0,0.10466809]
[1732972733514,0.02258606,96710.0,96709.0,0.00126609]
[1732972733748,0.02258606,96710.0,96709.0,0.10466809]
[1732972735609,0.02258606,96710.0,96709.0,0.00126609]
[1732972735826,0.02258606,96710.0,96709.0,0.10466809]
[1732972740516,0.02258606,96710.0,96709.0,0.00126609]
[1732972741006,0.12598706,96710.0,96709.0,0.00126609]
[1732972741226,0.02258606,96710.0,96709.0,0.00126609]
[1732972742152,0.12598706,96710.0,96709.0,0.00126609]
[1732972742372,0.02258606,96710.0,96709.0,0.00126609]
[1732972743144,0.12598706,96710.0,96709.0,0.00126609]
[1732972744309,0.02258606,96710.0,96709.0,0.00126609]
[1732972744984,0.02258606,96710.0,96709.0,0.10466809]
[1732972745457,0.02073217,96710.0,96709.0,0.00126609]
[1732972745919,0.02258546,96710.0,96709.0,0.00126609]
[1732972746834,0.12598646,96710.0,96709.0,0.00126609]
[1732972747278,0.02258546,96710.0,96709.0,0.00126609]
[1732972749257,0.02258546,96710.0,96709.0,0.10466809]
[1732972749510,0.02258546,96710.0,96709.0,0.00126609]
[1732972749734,0.01158029,96710.0,96709.0,0.00126609]
[1732972749981,0.02258546,96710.0,96709.0,0.00126609]
[1732972751615,0.02258546,96710.0,96709.0,0.10466809]
[1732972751816,0.02258546,96710.0,96709.0,0.10466808]
[1732972752077,0.02073217,96710.0,96709.0,0.00126608]
[1732972752300,0.02073217,96710.0,96709.0,0.10466808]
[1732972752301,0.02258546,96710.0,96709.0,0.10466808]
[1732972752532,0.02258546,96710.0,96709.0,0.00126608]
[1732972753688,0.02258546,96710.0,96709.0,0.10466808]
[1732972753933,0.009727,96710.0,96709.0,0.10466808]
[1732972754152,0.02258546,96710.0,96709.0,0.10466808]
[1732972754369,0.02073217,96710.0,96709.0,0.10466808]
[1732972754600,0.02258546,96710.0,96709.0,0.10466808]
[1732972755775,0.02073217,96710.0,96709.0,0.10466808]
[1732972756005,0.02258546,96710.0,96709.0,0.10466808]
[1732972756921,0.02073217,96710.0,96709.0,0.10466808]
[1732972757194,0.0225841,96710.0,96709.0,0.10466808]
[1732972757728,0.0225841,96710.0,96709.0,0.00126608]
[1732972757951,0.1259851,96710.0,96709.0,0.00126608]
[1732972758924,0.0225841,96710.0,96709.0,0.00126608]
[1732972759714,0.1259851,96710.0,96709.0,0.00126608]
[1732972761253,0.1715851,96710.0,96709.0,0.00126608]
[1732972761924,0.2527851,96710.0,96709.0,0.00126608]
[1732972773775,0.26403533,96710.0,96709.0,0.00126608]
[1732972778226,0.27403533,96710.0,96709.0,0.00126608]
[1732972783204,0.37688054,96710.0,96709.0,0.00126608]
[1732972784062,0.02100517,96708.0,96707.0,0.00212918]
[1732972784284,0.24900917,96708.0,96707.0,0.00212918]
[1732972784503,0.2508569,96708.0,96707.0,0.00212918]
[1732972784720,0.2508569,96708.0,96707.0,0.00253216]
[1732972785389,0.2528569,96708.0,96707.0,0.00253216]
[1732972785607,0.2528569,96708.0,96707.0,0.00040298]
[1732972786271,0.2558569,96708.0,96707.0,0.00040298]
[1732972787644,0.2538569,96708.0,96707.0,0.00040298]
[1732972788091,0.2518569,96708.0,96707.0,0.00040298]
[1732972788757,0.27124603,96708.0,96707.0,0.00040298]
[1732972789431,0.27324603,96708.0,96707.0,0.00040298]
[1732972790153,0.27924603,96708.0,96707.0,0.00040298]
[1732972792077,0.2588569,96708.0,96707.0,0.00040298]
[1732972793285,0.36170211,96708.0,96707.0,0.00213018]
[1732972794879,0.38282933,96708.0,96707.0,0.00213018]
[1732972796209,0.36170211,96708.0,96707.0,0.00213018]
[1732972799814,0.36170211,96708.0,96707.0,0.00202471]
[1732972804924,0.36256571,96708.0,96707.0,0.00202471]
[1732972811255,0.44357411,96708.0,96707.0,0.00202471]
[1732972811533,0.39485701,96708.0,96707.0,0.00202471]
[1732972815487,0.94200793,96708.0,96707.0,0.00202471]
[1732972815722,0.94000793,96708.0,96707.0,0.00202471]
[1732972815961,0.93700793,96708.0,96707.0,0.00202471]
[1732972816207,0.94200793,96708.0,96707.0,0.00202471]
[1732972817393,0.93900793,96708.0,96707.0,0.00202471]
[1732972817616,0.99882542,96708.0,96707.0,7.1e-07]
[1732972817839,0.94200793,96708.0,96707.0,7.1e-07]
[1732972818304,0.20681617,96701.0,96700.0,0.00021109]
[1732972818555,0.38715268,96701.0,96700.0,0.00021109]
[1732972818831,0.38898819,96701.0,96700.0,0.00021109]
[1732972822129,0.39498819,96701.0,96700.0,0.00121109]
[1732972822383,0.40398819,96701.0,96700.0,0.00121109]
[1732972823268,0.95098819,96701.0,96700.0,0.00121109]
[1732972824956,0.91869689,96701.0,96700.0,0.00121109]
[1732972825972,0.83629689,96701.0,96700.0,0.00121109]
[1732972827072,0.24409689,96701.0,96700.0,0.12781109]
[1732972827339,0.13125168,96701.0,96700.0,0.12781109]
[1732972827566,0.02784068,96701.0,96700.0,0.12867469]
[1732972827895,0.02184068,96701.0,96700.0,0.12767469]
[1732972828112,0.12525168,96701.0,96700.0,0.12767469]
[1732972828378,0.01683551,96701.0,96700.0,0.12867469]
[1732972828629,0.00783551,96701.0,96700.0,0.12867469]
[1732972828881,0.01083551,96701.0,96700.0,0.12867469]
[1732972829567,0.00183551,96701.0,96700.0,0.12767469]
[1732972829830,0.103409,96703.0,96700.0,0.12767469]
[1732972830066,0.01482338,96701.0,96700.0,0.12767469]
[1732972830300,0.01400517,96701.0,96700.0,0.12767469]
[1732972830554,0.01583233,96701.0,96700.0,0.12767469]
[1732972830769,0.01483233,96701.0,96700.0,0.12767469]
[1732972831266,0.11824333,96701.0,96700.0,0.12767469]
[1732972831525,0.11930946,96701.0,96700.0,0.12767469]
[1732972831727,0.10630429,96701.0,96700.0,0.12767469]
[1732972832032,0.11730946,96701.0,96700.0,0.12767469]
[1732972832737,0.11830946,96701.0,96700.0,0.12767469]
[1732972833666,0.11830946,96701.0,96700.0,0.00107469]
[1732972839209,0.10730429,96701.0,96700.0,0.00107469]
[1732972839436,0.11830946,96701.0,96700.0,0.00107469]
[1732972840113,0.10730429,96701.0,96700.0,0.00107469]
[1732972840355,0.11830946,96701.0,96700.0,0.00107469]
[1732972849667,0.11830946,96701.0,96700.0,0.0008636]
[1732972854939,0.12003666,96701.0,96700.0,0.0008636]
[1732972862413,0.12003666,96701.0,96700.0,0.0802636]
[1732972862919,0.10903149,96701.0,96700.0,0.0802636]
[1732972863143,0.12003666,96701.0,96700.0,0.0802636]
[1732972865029,0.20882,96703.0,96701.0,0.0552647]
[1732972865270,0.312229,96703.0,96702.0,0.023]
[1732972865491,0.22156811,96703.0,96702.0,0.023]
[1732972865721,0.103409,96703.0,96702.0,0.023]
[1732972865951,0.30107002,96703.0,96702.0,0.023]
[1732972866426,0.30307002,96703.0,96702.0,0.023]
[1732972866888,0.30407002,96703.0,96702.0,0.023]
[1732972867353,0.30307002,96703.0,96702.0,0.023]
[1732972867802,0.30407002,96703.0,96702.0,0.023]
[1732972868254,0.30407002,96703.0,96702.0,0.02319893]
[1732972870025,0.38857002,96703.0,96702.0,0.00019893]
[1732972870256,0.29432,96703.0,96702.0,0.00019893]
[1732972870480,0.4187063,96703.0,96702.0,0.00019893]
[1732972870923,0.4197063,96703.0,96702.0,0.00019893]
[1732972871836,0.398729,96703.0,96702.0,0.00019893]
[1732972872073,0.322229,96703.0,96702.0,0.00019893]
[1732972872481,0.32499475,96703.0,96702.0,0.00019893]
[1732972875289,0.44759475,96703.0,96702.0,0.00019893]
[1732972878909,0.44932195,96703.0,96702.0,0.00019893]
[1732972881414,0.10990195,96703.0,96702.0,0.00019893]
[1732972882118,0.00649295,96703.0,96702.0,0.25280893]
[1732972882817,0.06480224,96712.0,96706.0,0.103405]
[1732972883043,0.0002,96719.0,96705.0,0.023]
[1732972883260,0.06480224,96713.0,96705.0,0.02319893]
[1732972883487,0.16820024,96713.0,96710.0,0.023]
[1732972883705,0.16820024,96713.0,96710.0,0.00019893]
[1732972883936,0.06480224,96713.0,96710.0,0.00019893]
[1732972884166,0.00266937,96712.0,96710.0,0.00010333]
[1732972884388,0.1034,96711.0,96710.0,0.00010333]
[1732972884839,0.10607874,96711.0,96710.0,0.00016714]
[1732972885569,0.00267874,96711.0,96710.0,0.00016714]
[1732972886023,0.213788,96718.0,96710.0,0.00016714]
[1732972886248,0.00267792,96711.0,96710.0,0.00016714]
[1732972886471,0.111398,96713.0,96710.0,0.00016714]
[1732972886687,0.00267792,96711.0,96710.0,0.00016714]
[1732972886911,0.1034,96711.0,96710.0,0.00016714]
[1732972887134,0.11207792,96711.0,96710.0,0.00016714]
[1732972887586,0.10807792,96711.0,96710.0,0.00016714]
[1732972888489,0.11207792,96711.0,96710.0,0.00016714]
[1732972891483,0.11380512,96711.0,96710.0,0.00016714]
[1732972897604,0.12380512,96711.0,96710.0,0.00016714]
[1732972901927,0.17350512,96711.0,96710.0,0.00016714]
[1732972902642,0.35265033,96711.0,96710.0,0.00016714]
[1732972907840,0.35265033,96711.0,96702.0,0.00017591]
[1732972907841,0.01,96703.0,96702.0,0.00017591]
[1732972908060,0.113409,96703.0,96702.0,0.00017591]
[1732972908285,0.1160913,96703.0,96702.0,0.00017591]
[1732972912279,0.1160913,96703.0,96702.0,0.00117591]
[1732972912508,0.1220913,96703.0,96702.0,0.00117591]
[1732972913214,0.1250913,96703.0,96702.0,0.00117591]
[1732972914181,0.13586522,96703.0,96702.0,0.00117591]
[1732972916185,0.12586522,96703.0,96702.0,0.00117591]
[1732972916861,0.13586522,96703.0,96702.0,0.00117591]
[1732972917135,0.12586522,96703.0,96702.0,0.00117591]
[1732972917358,0.13586522,96703.0,96702.0,0.00117591]
[1732972920137,0.1150913,96703.0,96702.0,0.00117591]
[1732972924266,0.1250913,96703.0,96702.0,0.00117591]
[1732972929322,0.13628778,96703.0,96702.0,0.00117591]
[1732972939653,0.13801498,96703.0,96702.0,0.00117591]
[1732972939876,0.17033359,96703.0,96702.0,0.00117591]
[1732972942550,0.13801498,96703.0,96702.0,0.00117591]
[1732972944951,0.1168185,96703.0,96702.0,0.00117591]
[1732972945205,0.1168185,96703.0,96702.0,0.07177591]
[1732972947329,0.1268185,96703.0,96702.0,0.00117591]
[1732972956293,0.22966371,96703.0,96702.0,0.00117591]
[1732972956521,0.26197569,96703.0,96702.0,0.00117591]
[1732972957432,0.31027569,96703.0,96702.0,0.00117591]
[1732972957659,0.31027569,96703.0,96698.0,0.0008632]
[1732972957660,0.113419,96694.0,96693.0,0.00104257]
[1732972958099,0.1160168,96694.0,96693.0,0.00104257]
[1732972958966,0.1170168,96694.0,96693.0,0.00104257]
[1732972959433,0.26816201,96694.0,96693.0,0.00104257]
[1732972959881,0.27016201,96694.0,96693.0,0.00104257]
[1732972960104,0.290559,96694.0,96693.0,0.00104257]
[1732972965911,0.3018695,96694.0,96693.0,0.00104257]
[1732972967124,0.30202042,96694.0,96693.0,0.00104257]
[1732972967622,0.3018695,96694.0,96693.0,0.00104257]
[1732972969629,0.290559,96694.0,96693.0,0.00104257]
[1732972989500,0.32286834,96694.0,96693.0,0.00104257]
[1732972992426,0.113424,96689.0,96688.0,0.03221932]
[1732972992633,0.11592706,96689.0,96688.0,0.02221932]
[1732972993058,0.01250306,96689.0,96685.0,0.01]
[1732972993272,0.01250306,96689.0,96684.0,0.00071174]
[1732972993498,0.103428,96685.0,96684.0,0.00071174]
[1732972993921,0.10593106,96685.0,96684.0,0.00071174]
[1732972994163,0.10593106,96685.0,96684.0,0.01071174]
[1732972994583,0.10593106,96685.0,96684.0,0.03371174]
[1732972994805,0.10593106,96685.0,96684.0,0.02371174]
[1732972995035,0.10593106,96685.0,96684.0,0.03371174]
[1732972995250,0.10593106,96685.0,96684.0,0.03471174]
[1732972995524,0.00250306,96685.0,96684.0,0.26524074]
[1732972995743,0.20684,96693.0,96684.0,0.26424074]
[1732972995960,0.20684,96693.0,96688.0,0.023]
[1732972996179,0.20684,96693.0,96691.0,0.023]
[1732972996399,0.103421,96692.0,96691.0,0.023]
[1732972996818,0.0204567,96694.0,96691.0,0.023]
[1732972997032,0.002,96693.0,96692.0,0.1491]
[1732972997245,0.10542,96693.0,96692.0,0.1491]
[1732972998326,0.10342,96693.0,96692.0,0.1491]
[1732972998569,0.10442,96693.0,96692.0,0.1491]
[1732972998999,0.10342,96693.0,96692.0,0.1491]
[1732972999221,0.10542,96693.0,96692.0,0.1491]
[1732972999452,0.10642,96693.0,96692.0,0.1491]
[1732973003389,0.003,96693.0,96692.0,0.1591]
[1732973003613,0.003,96693.0,96692.0,0.262521]
[1732973005023,0.001,96693.0,96692.0,0.262521]
[1732973005239,5.971e-05,96694.0,96693.0,0.13642]
[1732973007381,0.00256379,96694.0,96693.0,0.13642]
[1732973007605,5.971e-05,96694.0,96693.0,0.13642]
[1732973008281,0.00256379,96694.0,96693.0,0.033]
[1732973008515,5.971e-05,96694.0,96693.0,0.13642]
[1732973009156,0.00256525,96694.0,96693.0,0.13642]
[1732973009423,0.00342885,96694.0,96693.0,0.13642]
[1732973010391,0.00342885,96694.0,96693.0,0.033]
[1732973010627,0.00342885,96694.0,96693.0,0.13642]
[1732973011056,0.00342885,96694.0,96693.0,0.033]
[1732973011254,0.00342885,96694.0,96693.0,0.13642]
[1732973012306,0.00342885,96694.0,96693.0,0.033]
[1732973013596,0.00342885,96694.0,96693.0,0.13642]
[1732973016358,0.00342885,96694.0,96693.0,0.033]
[1732973016551,0.00342885,96694.0,96693.0,0.13642]
[1732973018093,0.00092331,96694.0,96693.0,0.13642]
[1732973018346,0.00342885,96694.0,96693.0,0.13642]
[1732973018565,0.00092331,96694.0,96693.0,0.13642]
[1732973018778,0.00342885,96694.0,96693.0,0.13642]
[1732973019007,0.00092331,96694.0,96693.0,0.13642]
[1732973019443,0.00092331,96694.0,96693.0,0.13942]
[1732973019669,0.00334376,96694.0,96693.0,0.13942]
[1732973019987,0.00092331,96694.0,96693.0,0.13942]
[1732973020220,0.00334376,96694.0,96693.0,0.13942]
[1732973020446,0.00092331,96694.0,96693.0,0.13942]
[1732973021551,0.00334376,96694.0,96693.0,0.13942]
[1732973021766,0.00092331,96694.0,96693.0,0.13942]
[1732973021983,0.00334376,96694.0,96693.0,0.13942]
[1732973022232,0.00092331,96694.0,96693.0,0.13942]
[1732973022442,0.00334376,96694.0,96693.0,0.13942]
[1732973022657,0.00092331,96694.0,96693.0,0.13942]
[1732973023132,0.00334376,96694.0,96693.0,0.13942]
[1732973023342,0.00092331,96694.0,96693.0,0.036]
[1732973023551,0.00334376,96694.0,96693.0,0.13942]
[1732973023773,0.00092331,96694.0,96693.0,0.036]
[1732973023980,0.00334376,96694.0,96693.0,0.13942]
[1732973024195,0.00092331,96694.0,96693.0,0.13942]
[1732973024408,0.00334376,96694.0,96693.0,0.13942]
[1732973024620,0.00092331,96694.0,96693.0,0.13942]
[1732973024854,0.00334376,96694.0,96693.0,0.13942]
[1732973025728,0.00334376,96694.0,96693.0,0.036]
[1732973028197,0.00334376,96694.0,96693.0,0.13942]
[1732973028624,0.00092331,96694.0,96693.0,0.13942]
[1732973028844,0.00334376,96694.0,96693.0,0.13942]
[1732973029074,0.00334264,96694.0,96693.0,0.13942]
[1732973029851,0.00092331,96694.0,96693.0,0.13942]
[1732973031165,0.00334264,96694.0,96693.0,0.13942]
[1732973031381,0.00092331,96694.0,96693.0,0.13942]
[1732973031602,0.00334264,96694.0,96693.0,0.13942]
[1732973031815,0.00092331,96694.0,96693.0,0.036]
[1732973032022,0.00334264,96694.0,96693.0,0.13942]
[1732973032292,0.00092331,96694.0,96693.0,0.13942]
[1732973032504,0.00334264,96694.0,96693.0,0.13942]
[1732973032722,0.00092331,96694.0,96693.0,0.13942]
[1732973032942,0.00334264,96694.0,96693.0,0.13942]
[1732973033176,0.00092331,96694.0,96693.0,0.13942]
[1732973033579,0.00334264,96694.0,96693.0,0.13942]
[1732973033841,0.00092331,96694.0,96693.0,0.13942]
[1732973034022,0.00334264,96694.0,96693.0,0.036]
[1732973034244,0.00092331,96694.0,96693.0,0.036]
[1732973034693,0.00334264,96694.0,96693.0,0.036]
[1732973034906,0.00092331,96694.0,96693.0,0.036]
[1732973035125,0.00334264,96694.0,96693.0,0.036]
[1732973035333,0.00092331,96694.0,96693.0,0.036]
[1732973035547,0.00334264,96694.0,96693.0,0.036]
[1732973035773,0.00092331,96694.0,96693.0,0.036]
[1732973036015,0.00334264,96694.0,96693.0,0.13942]
[1732973036228,0.00092331,96694.0,96693.0,0.13942]
[1732973036465,0.00334264,96694.0,96693.0,0.13942]
[1732973036643,0.00092331,96694.0,96693.0,0.036]
[1732973036857,0.00092331,96694.0,96693.0,0.13942]
[1732973037549,0.00334264,96694.0,96693.0,0.13942]
[1732973037805,0.00092331,96694.0,96693.0,0.13942]
[1732973038031,0.00334264,96694.0,96693.0,0.13942]
[1732973039661,0.00092331,96694.0,96693.0,0.13942]
[1732973039925,0.00092331,96694.0,96693.0,0.52439564]
[1732973040134,0.00092331,96694.0,96693.0,0.52256521]
[1732973041299,0.00092331,96694.0,96693.0,0.52056521]
[1732973041556,0.00092331,96694.0,96693.0,0.52356521]
[1732973041800,0.00092331,96694.0,96693.0,0.52556521]
[1732973043706,0.00092331,96694.0,96693.0,0.53684523]
[1732973051473,0.00092331,96694.0,96693.0,0.52556521]
[1732973052328,0.00092331,96694.0,96693.0,0.52970321]
[1732973053226,0.00092331,96694.0,96693.0,0.52556521]
[1732973057264,0.00092331,96694.0,96693.0,0.44396521]
[1732973061493,0.00092331,96694.0,96693.0,0.52386521]
[1732973069883,0.00092331,96694.0,96693.0,0.53386521]
[1732973070623,0.0017272,96698.0,96697.0,0.417815]
[1732973070832,0.0017272,96698.0,96697.0,0.52066021]
[1732973075263,0.0017272,96698.0,96697.0,1.02130654]
[1732973076750,0.0017272,96698.0,96697.0,0.52066021]
[1732973081709,0.0017272,96698.0,96697.0,0.49766021]
[1732973082689,0.0017272,96698.0,96697.0,0.37626021]
[1732973083432,0.0017272,96698.0,96697.0,0.39926021]
[1732973093726,0.0017272,96698.0,96697.0,0.37926021]
[1732973093945,0.0017272,96698.0,96697.0,0.38926021]
[1732973094165,0.0017272,96698.0,96697.0,0.39926021]
[1732973100359,0.0017272,96698.0,96697.0,0.38926021]
[1732973101016,0.0017272,96698.0,96697.0,0.23926021]
[1732973102345,0.0017272,96698.0,96697.0,0.38926021]
[1732973108877,0.0480272,96698.0,96697.0,0.38926021]
[1732973114378,0.1258272,96698.0,96697.0,0.37926021]
[1732973114580,0.1258272,96698.0,96697.0,0.38926021]
[1732973114799,0.12811869,96698.0,96697.0,0.38926021]
[1732973115642,0.12811869,96698.0,96697.0,0.263415]
[1732973116273,0.12811869,96698.0,96697.0,0.01]
[1732973116518,0.12811869,96698.0,96697.0,0.113415]
[1732973116738,0.12811869,96698.0,96697.0,0.263415]
[1732973119428,0.12811869,96698.0,96697.0,0.16]
[1732973119643,0.12811869,96698.0,96697.0,0.263415]
[1732973119859,0.12811869,96698.0,96697.0,0.286415]
[1732973129103,0.1258272,96698.0,96697.0,0.286415]
[1732973129579,0.0017272,96698.0,96697.0,0.286415]
[1732973130454,0.0485272,96698.0,96697.0,0.183]
[1732973130671,0.05081426,96698.0,96697.0,0.183]
[1732973130880,0.0485272,96698.0,96697.0,0.183]
[1732973131096,0.05081426,96698.0,96697.0,0.183]
[1732973131311,0.05081426,96698.0,96697.0,0.286415]
[1732973133504,0.05081426,96698.0,96697.0,0.183]
[1732973133689,0.0485272,96698.0,96697.0,0.183]
[1732973133900,0.0485272,96698.0,96697.0,0.286415]
[1732973134137,0.05081221,96698.0,96697.0,0.286415]
[1732973135849,0.13121221,96698.0,96697.0,0.136415]
[1732973145078,0.00401221,96698.0,96697.0,0.136415]
[1732973145486,0.0017272,96698.0,96697.0,0.136415]
[1732973148077,0.0017272,96698.0,96697.0,0.2892905]
[1732973148308,0.0017272,96698.0,96697.0,0.28746021]
[1732973152641,0.0017272,96698.0,96697.0,0.28719548]
[1732973153522,0.0017272,96698.0,96697.0,0.23899548]